Cogmind - Beta 10.2 @@@ ROGUE MODE // 2021.08.31 @ 16:01:30 Player: BoomBlip Result: Destroyed by S-27 Virus with Autogun Performance ------------- Evolutions (4) 2000 Regions Visited (13) 2600 Robots Destroyed (91) 455 Value Destroyed (3652) 3652 Prototype IDs (11) 220 Alien Tech Used (0) 0 Bonus (1320) 1320 TOTAL SCORE: 10247 Bonus ------- High Alert Combat Kills 169 Follower Combat Kills 613 Entered Garrisons 200 Used RIF Installer 500 Aligned with FarCom 300 Friendly Fire -462 Cogmind --------- Core Integrity 0/850 Matter 285/300 Energy 72/100 System Corruption 2% Temperature Cool (3) Movement Flying (40) Location -6/Extension Parts ------- > --- POWER (1) -------- (None) > --- PROPULSION (3) --- VTOL Module > --- UTILITY (8) ------ (None) > --- WEAPON (3) ------- (None) > --- INVENTORY (4) ---- Advanced Heat Sink Peak State ------------ > --- POWER ------------ Fission Core > --- PROPULSION ------- Improved Carbon-fiber Leg Improved Carbon-fiber Leg Myomer Leg > --- UTILITY ---------- Coolant Injector Humpback Compact Battery High-capacity Matter Pod Targeting Computer Targeting Computer Improved Light Armor Plating > --- WEAPON ----------- Shock Rifle Heavy Particle Gun Heavy Laser > --- INVENTORY -------- Improved Ion Engine Light Nuclear Core Micro Nuclear Core Aluminum Leg Improved Aluminum Leg Carbon-fiber Leg Titanium Leg Improved Heat Sink Improved Heat Sink Advanced Heat Sink Advanced Heat Sink Humpback Improved Medium Armor Plating Recalibrator Lightning Gun Particle Gun Improved Medium Laser Heavy Particle Gun Heavy Particle Gun Advanced Beam Rifle Heavy Assault Rifle Heavy Missile Launcher Heavy Missile Launcher [Rating: 53] Favorites ----------- Power Light Deuterium Engine Engine Light Deuterium Engine Power Core Micro Nuclear Core Propulsion Aluminum Leg Treads Light Treads Leg Aluminum Leg Flight Unit VTOL Module Utility Humpback Device Improved Heat Sink Storage Humpback Processor Targeting Computer Protection Improved Medium Armor Plating Weapon Heavy Assault Rifle Energy Gun Lightning Gun Energy Cannon Advanced Beam Cannon Ballistic Gun Heavy Assault Rifle Ballistic Cannon Advanced Assault Cannon Launcher Advanced EMP Blaster Build | -11 -10 -9 -9 -9 -8 -8 -8 -8 -7 -7 -7 -6 -6 ------- Run | Scr Mat Mat Min Exi Min Mat Sto Gar Fac Low Low Fac Ext Slots Evolved 8 | . . 2 . . . 2 . . 2 . . 2 . Power . | . . . . . . . . . . . . . . Propulsion 1 | . . 1 . . . . . . . . . . . Utility 6 | . . 1 . . . 2 . . 1 . . 2 . Weapon 1 | . . . . . . . . . 1 . . . . Parts Attached 132 | 6 2 17 1 3 9 11 17 24 12 6 . 9 15 Power 17 | . 1 5 . . . 2 1 2 1 1 . 2 2 Engine 11 | . 1 5 . . . 2 1 2 . . . . . Core 6 | . . . . . . . . . 1 1 . 2 2 Reactor . | . . . . . . . . . . . . . . Propulsion 41 | 2 . 4 1 . 4 5 4 9 5 . . 2 5 Treads 1 | . . . . . . . 1 . . . . . . Leg 38 | 2 . 4 1 . 4 5 3 9 5 . . 2 3 Wheel . | . . . . . . . . . . . . . . Hover . | . . . . . . . . . . . . . . Flight 2 | . . . . . . . . . . . . . 2 Utility 36 | 2 1 4 . 3 1 4 6 4 3 2 . 3 3 Device 11 | . . . . 2 . 2 2 2 2 . . . 1 Storage 11 | 2 1 2 . 1 . 1 2 . . . . 1 1 Processor 2 | . . . . . . . . . 1 . . 1 . Hackware . | . . . . . . . . . . . . . . Protection 12 | . . 2 . . 1 1 2 2 . 2 . 1 1 Artifact . | . . . . . . . . . . . . . . Weapon 38 | 2 . 4 . . 4 . 6 9 3 3 . 2 5 Energy Gun 17 | . . 1 . . 1 . 3 3 3 1 . 1 4 Energy Cannon 2 | . . . . . . . 1 1 . . . . . Ballistic Gun 16 | 2 . 3 . . 3 . 2 3 . 1 . 1 1 Ballistic Cannon 1 | . . . . . . . . . . 1 . . . Launcher 2 | . . . . . . . . 2 . . . . . Special Weapon . | . . . . . . . . . . . . . . Impact Weapon . | . . . . . . . . . . . . . . Slashing Weapon . | . . . . . . . . . . . . . . Piercing Weapon . | . . . . . . . . . . . . . . Special Melee Weapon . | . . . . . . . . . . . . . . Unidentified Prototypes 11 | . . . . 2 . . 5 2 1 1 . . . Parts Lost 42 | . . 1 . . 1 5 6 5 . 3 1 2 18 Power 5 | . . . . . . 1 1 1 . 1 . . 1 Propulsion 10 | . . . . . . 2 2 1 . . . . 5 Utility 13 | . . . . . . 2 2 1 . . 1 1 6 Weapon 14 | . . 1 . . 1 . 1 2 . 2 . 1 6 Highest Loss Streak 15 | . . 1 . . 1 3 6 2 . 3 1 2 15 Average Slot Usage (%) 90 | . 90 99 100 92 83 86 88 89 91 91 90 85 89 Engine 6 | . 5 11 11 11 11 9 8 8 1 . . . . Core 2 | . . . . . . . . . 5 6 7 6 5 Treads 1 | . . . . . . . 5 5 . . . . . Leg 25 | . 28 33 33 33 33 27 21 21 23 23 23 20 19 Device 6 | . . . . 2 . 9 12 10 7 7 7 5 5 Storage 17 | . 28 22 22 19 11 16 14 18 15 15 15 14 19 Processor 3 | . . . . . . . . . 6 7 7 12 12 Protection 6 | . . 11 11 4 6 6 8 7 7 7 6 6 4 Energy Gun 9 | . . 3 11 11 9 9 5 6 14 14 7 6 16 Ballistic Gun 8 | . 28 18 11 11 11 9 8 8 7 1 7 6 1 Naked Turns 6 | . . . . . . . . . . . . . 6 Heaviest Build 123 | 11 44 50 50 123 95 101 100 106 111 114 108 110 109 Greatest Support 61 | 20 20 30 30 30 40 40 30 30 45 45 45 51 61 Greatest Overweight (x) 5 | . 2 1 1 4 3 3 4 5 3 2 2 2 3 Average Overweight (x) 2 | . 1 1 1 2 2 2 3 3 2 2 2 2 1 Largest Inventory Capacity 44 | 8 14 14 14 32 24 24 44 24 24 24 24 24 24 Average Capacity 22 | 5 13 14 14 23 24 24 24 24 24 24 24 24 23 Most Carried 24 | 1 8 14 14 22 24 24 24 24 24 24 24 24 24 Average Carried 21 | . 4 11 14 18 23 23 22 23 23 23 24 23 21 Final Capacity 24 | 8 14 14 14 24 24 24 24 24 24 24 24 24 4 Final Carried 24 | 1 8 14 14 22 24 24 24 24 24 24 24 23 1 Class Distribution -------------------- 39% | Scavenger-Mutant 21% | Hauler-Gunner 19% | Hauler-Mutant 9% | Hauler-Skirmisher 8% | Mutant Dominant Class ---------------- Mutant | -10/Materials Mutant | -9/Materials Scavenger-Mutant | -9/Mines Hauler-Mutant | -9/Exiles Scavenger-Mutant | -8/Mines Scavenger-Mutant | -8/Materials Scavenger-Mutant | -8/Storage Scavenger-Mutant | -8/Garrison Hauler-Skirmisher | -7/Factory Hauler-Gunner | -7/Lower Caves Hauler-Gunner | -7/Lower Caves Hauler-Gunner | -6/Factory Hauler-Gunner | -6/Extension Resources | -11 -10 -9 -9 -9 -8 -8 -8 -8 -7 -7 -7 -6 -6 ----------- Run | Scr Mat Mat Min Exi Min Mat Sto Gar Fac Low Low Fac Ext Matter Collected 2525 | 276 64 283 42 20 145 398 238 349 138 214 41 119 198 Remotely . | . . . . . . . . . . . . . . Salvage Created 4356 | 94 129 587 134 . 149 411 482 824 136 398 41 205 766 Parts 236 | 1 10 28 8 . 13 26 26 55 13 19 1 13 23 Haulers Intercepted . | . . . . . . . . . . . . . . Recyclers Shooed 5 | . . 2 . . . . . . 1 . . . 2 Parts Field Recycled . | . . . . . . . . . . . . . . Retrieved Matter . | . . . . . . . . . . . . . . Parts Self-Destructed 10 | . . . . . . . . . . 9 1 . . Prevented 5 | . . . . . . . . . . 5 . . . Kills | -11 -10 -9 -9 -9 -8 -8 -8 -8 -7 -7 -7 -6 -6 ------- Run | Scr Mat Mat Min Exi Min Mat Sto Gar Fac Low Low Fac Ext Combat Hostiles Destroyed 81 | . 3 9 3 . 4 10 9 20 4 8 1 4 6 Guns 66 | . 3 9 3 . 4 8 7 12 3 7 . 4 6 Cannons 4 | . . . . . . . 2 1 . . 1 . . AOE 10 | . . . . . . 2 . 7 1 . . . . Classes Destroyed 11 | 1 2 2 . . 1 . 1 . 1 2 . . 1 Builder 2 | . 1 . . . . . . . . . . . 1 Recycler 6 | 1 . 2 . . . . 1 . . . . . 2 Operator 1 | . . . . . . . . . . . . . 1 Swarmer 20 | . . . . . 3 2 2 7 3 3 . . . Grunt 35 | . 3 4 2 . 2 5 4 8 . 3 1 . 3 Brawler 2 | . . 1 1 . . . . . . . . . . Duelist 2 | . . . . . . . 1 1 . . . . . Sentry 18 | . . 4 . . . 3 2 4 . . . 2 3 Programmer 3 | . . . . . . . . . 1 . . 2 . Behemoth 1 | . . . . . . . . . . 1 . . . Mutant 1 | . . . . . . . . . . 1 . . . Best Kill Streak 5 | 1 4 5 3 . 3 3 3 4 3 3 1 1 4 Combat Bots Only 4 | . 3 4 3 . 3 3 3 4 3 3 1 1 3 Max Kills in Single Turn 4 | 1 1 1 2 . 1 1 1 4 1 1 1 1 1 Gunslinging 1 | . . . 1 . . . . . . . . . . Exploded 4 | . . . . . . 1 . 4 1 . . . . Melee . | . . . . . . . . . . . . . . Uniques/NPCs Destroyed . | . . . . . . . . . . . . . . Combat | -11 -10 -9 -9 -9 -8 -8 -8 -8 -7 -7 -7 -6 -6 -------- Run | Scr Mat Mat Min Exi Min Mat Sto Gar Fac Low Low Fac Ext Damage Taken 7545 | . 122 482 92 . 230 1041 780 1113 146 777 224 227 2311 Core 1415 | . 43 50 10 . 12 166 70 118 . 68 16 37 825 Absorbed by Shields 111 | . . . . . . . . . . . . . 111 Core Remaining (%) 77 | 100 82 . . . 82 . . 35 . . 88 . . Volleys Fired 240 | 4 11 26 4 . 14 27 29 42 8 24 5 10 36 Largest 3 | 2 2 2 2 . 2 2 2 2 3 3 3 3 3 Hottest 174 | 40 40 68 68 . 68 73 91 111 133 158 132 134 174 Shots Fired 548 | 8 22 52 8 . 24 54 57 83 24 71 15 26 104 Gun 494 | 8 22 52 8 . 24 54 45 74 24 47 10 22 104 Cannon 52 | . . . . . . . 12 7 . 24 5 4 . Launcher 2 | . . . . . . . . 2 . . . . . Special . | . . . . . . . . . . . . . . Kinetic 270 | 8 22 48 4 . 14 27 28 43 8 27 10 14 17 Thermal 119 | . . . . . . . 29 18 . 3 5 10 54 Explosive . | . . . . . . . . . . . . . . Electromagnetic 159 | . . 4 4 . 10 27 . 22 16 41 . 2 33 Robot Hit Streak 23 | 6 7 23 7 . 3 11 17 21 6 5 6 8 18 Robot Miss Streak 5 | 1 1 2 1 . 4 5 2 3 3 4 4 2 3 Penetration Max . | . . . . . . . . . . . . . . Secondary Targets 10 | . 2 1 1 . 1 . 1 2 . . . . 2 Max Gunslinging Chain 1 | . 1 1 1 . 1 . 1 1 . . . . 1 Shots Hit Robots 368 | 6 16 40 7 . 11 36 43 46 10 36 10 18 89 Core Hits 175 | 3 6 19 4 . 8 18 18 32 4 15 2 9 37 Critical Hits 5 | . . . . . . . 2 2 . 1 . . . Critical Kills . | . . . . . . . . . . . . . . Critical Parts Destroyed 5 | . . . . . . . 2 2 . 1 . . . Melee Attacks . | . . . . . . . . . . . . . . Impact . | . . . . . . . . . . . . . . Slashing . | . . . . . . . . . . . . . . Piercing . | . . . . . . . . . . . . . . Sneak Attacks . | . . . . . . . . . . . . . . Combat Hostiles . | . . . . . . . . . . . . . . Follow-up Attacks . | . . . . . . . . . . . . . . Damage Inflicted 7050 | 72 193 469 92 . 151 889 795 1030 221 886 173 365 1714 Guns 5663 | 72 193 469 92 . 151 605 611 817 119 509 119 297 1609 Cannons 572 | . . . . . . . 184 20 . 246 54 68 . Explosions 804 | . . . . . . 284 . 193 102 131 . . 94 Melee . | . . . . . . . . . . . . . . Ramming 11 | . . . . . . . . . . . . . 11 Kinetic 2647 | 72 193 427 46 . 77 322 353 317 18 275 108 189 250 Thermal 2183 | . . . . . . 88 442 140 102 181 65 160 1005 Explosive 196 | . . . . . . 196 . . . . . . . Electromagnetic 2013 | . . 42 46 . 74 283 . 573 101 430 . 16 448 Impact . | . . . . . . . . . . . . . . Slashing . | . . . . . . . . . . . . . . Piercing . | . . . . . . . . . . . . . . Highest Corruption 2 | . . . . . . . . . . . . . 2 Average Corruption 2 | . . . . . . . . . . . . . 2 Corruption Purged . | . . . . . . . . . . . . . . Overload Shots . | . . . . . . . . . . . . . . Overflow Damage 39 | . . . . . . 19 10 10 . . . . . Projectiles 10 | . . . . . . . 10 . . . . . . Explosions 29 | . . . . . . 19 . 10 . . . . . Melee . | . . . . . . . . . . . . . . Knockbacks 1 | . . . . . . . . . . . . 1 . Impact . | . . . . . . . . . . . . . . Kinetic 1 | . . . . . . . . . . . . 1 . Secondary . | . . . . . . . . . . . . . . Self-Inflicted Damage 462 | . . . . . . 234 . 175 . . . . 53 Shots 6 | . . . . . . 3 . 2 . . . . 1 Rammed 4 | . . . . . . . . . . . . . 4 Targets Rammed 5 | . . . . . . . . . . . . . 5 Kicked 1 | . . . . . . . . . . . . . 1 Crushed . | . . . . . . . . . . . . . . Highest Temperature 196 | . 7 18 45 . 47 21 . 92 . 57 4 152 196 Average Temperature 60 | . 2 7 21 . 21 9 . 50 . 15 4 66 87 Received Heat Transfer 1918 | . 66 180 30 . 18 342 261 360 . 144 51 54 412 Siege Activations . | . . . . . . . . . . . . . . Robots Corrupted 1 | . . . . . . . . . . 1 . . . Combat Hostiles 1 | . . . . . . . . . . 1 . . . Parts Fried 7 | . . . . . . 1 . 1 . 3 . . 2 Impact Corruptions . | . . . . . . . . . . . . . . Robots Melted . | . . . . . . . . . . . . . . Combat Hostiles . | . . . . . . . . . . . . . . Parts Melted 6 | . . . . . . . 2 1 . . . 2 1 Heat Transferred 3921 | . . . . . . 100 888 259 . 261 148 333 1932 Parts Sabotaged . | . . . . . . . . . . . . . . Parts Stolen . | . . . . . . . . . . . . . . Parts Stripped . | . . . . . . . . . . . . . . Power Chain Reactions 4 | . . . . . . 1 . . 1 1 . . 1 Missiles Intercepted . | . . . . . . . . . . . . . . Alert | -11 -10 -9 -9 -9 -8 -8 -8 -8 -7 -7 -7 -6 -6 ------- Run | Scr Mat Mat Min Exi Min Mat Sto Gar Fac Low Low Fac Ext Peak Influence 921 | 5 148 322 140 . 201 248 199 921 483 . . 151 262 Initial 483 | . 3 62 70 . . 78 102 2 483 . . 6 . Average 239 | 1 66 164 138 . 145 160 81 508 354 . . 41 119 Maximum Alert Level 3 | . . 1 . . 1 1 . 3 2 . . . 1 Low Security (%) 61 | 100 100 67 100 . 77 78 100 28 1 . . 100 85 Level 1 17 | . . 32 . . 22 21 . 8 58 . . . 14 Level 2 13 | . . . . . . . . 30 40 . . . . Level 3 7 | . . . . . . . . 31 . . . . . Level 4 . | . . . . . . . . . . . . . . Level 5 . | . . . . . . . . . . . . . . High Security . | . . . . . . . . . . . . . . Max Security . | . . . . . . . . . . . . . . Squads Dispatched 12 | . 2 1 . . . 1 2 . 1 . . . 5 Investigation 4 | . 1 . . . . . . . . . . . 3 Extermination 1 | . . . . . . . . . 1 . . . . Reinforcement 6 | . 1 1 . . . 1 1 . . . . . 2 Assault . | . . . . . . . . . . . . . . Garrison 1 | . . . . . . . 1 . . . . . . Intercept . | . . . . . . . . . . . . . . Construction Impeded 1 | . . . . . . . . . . . . . 1 Haulers Reinforced . | . . . . . . . . . . . . . . Stealth | -11 -10 -9 -9 -9 -8 -8 -8 -8 -7 -7 -7 -6 -6 --------- Run | Scr Mat Mat Min Exi Min Mat Sto Gar Fac Low Low Fac Ext Distress Signals 4 | . . . . . . . . . 1 . . 1 2 Communications Jammed . | . . . . . . . . . . . . . . Distress Signals . | . . . . . . . . . . . . . . Times Spotted 137 | . 9 18 3 . 7 12 10 21 5 10 2 6 34 Peak Tracking Total 10 | . 5 8 3 . 4 4 3 4 4 4 1 2 10 Tactical Retreats 7 | . 1 . . . . 2 . 1 . 1 . . 2 Traps | -11 -10 -9 -9 -9 -8 -8 -8 -8 -7 -7 -7 -6 -6 ------- Run | Scr Mat Mat Min Exi Min Mat Sto Gar Fac Low Low Fac Ext Traps Triggered 9 | . 1 1 . . . . 1 5 . . . . 1 Indirectly . | . . . . . . . . . . . . . . Trap Hack Attempts . | . . . . . . . . . . . . . . Triggered . | . . . . . . . . . . . . . . Disarmed . | . . . . . . . . . . . . . . Reprogrammed . | . . . . . . . . . . . . . . Reused . | . . . . . . . . . . . . . . Traps Extracted . | . . . . . . . . . . . . . . Installed . | . . . . . . . . . . . . . . Triggered 1 | . . . . . . . . . . . . . 1 Machines | -11 -10 -9 -9 -9 -8 -8 -8 -8 -7 -7 -7 -6 -6 ---------- Run | Scr Mat Mat Min Exi Min Mat Sto Gar Fac Low Low Fac Ext Machines Disabled 9 | . . . . . . 3 1 3 . 1 . 1 . Max in Single Turn 2 | . . . . . . 2 1 2 . 1 . 1 . Garrison Relay 1 | . . . . . . . . 1 . . . . . Phase Generator 1 | . . . . . . . . 1 . . . . . Machines Sabotaged . | . . . . . . . . . . . . . . Garrisons Compromised . | . . . . . . . . . . . . . . Overloaded Fab Kills . | . . . . . . . . . . . . . . Fab Network Shutdowns . | . . . . . . . . . . . . . . Hacking | -11 -10 -9 -9 -9 -8 -8 -8 -8 -7 -7 -7 -6 -6 --------- Run | Scr Mat Mat Min Exi Min Mat Sto Gar Fac Low Low Fac Ext Machines Accessed 17 | . 2 2 . 1 . . 3 . 2 . . 1 6 Terminals 12 | . . 2 . . . . 2 . 1 . . 1 6 Fabricators . | . . . . . . . . . . . . . . Repair Stations 1 | . . . . . . . . . 1 . . . . Recycling Units 2 | . 2 . . . . . . . . . . . . Scanalyzers . | . . . . . . . . . . . . . . Garrison Access 1 | . . . . . . . 1 . . . . . . Total Hacks 50 | . 4 4 . 23 . . 4 . 5 . . 1 9 Successful 38 | . 2 . . 23 . . 3 . 4 . . 1 5 Failed 12 | . 2 4 . . . . 1 . 1 . . . 4 Catastrophic 3 | . . 1 . . . . 1 . 1 . . . . Database Lockouts . | . . . . . . . . . . . . . . Manual 6 | . . 4 . 1 . . . . 1 . . . . Terminals 18 | . . 4 . . . . 3 . 1 . . 1 9 Fabricators . | . . . . . . . . . . . . . . Repair Stations 4 | . . . . . . . . . 4 . . . . Recycling Units 4 | . 4 . . . . . . . . . . . . Scanalyzers . | . . . . . . . . . . . . . . Garrison Access 1 | . . . . . . . 1 . . . . . . Terminal Hacks 31 | . . . . 23 . . 2 . . . . 1 5 Record 23 | . . . . 23 . . . . . . . . . Open Door 8 | . . . . . . . 2 . . . . 1 5 Fabricator Hacks . | . . . . . . . . . . . . . . Repair Station Hacks 4 | . . . . . . . . . 4 . . . . Scan Component 2 | . . . . . . . . . 2 . . . . Repair 2 | . . . . . . . . . 2 . . . . Recycling Unit Hacks 2 | . 2 . . . . . . . . . . . . Retrieve Components 2 | . 2 . . . . . . . . . . . . Scanalyzer . | . . . . . . . . . . . . . . Garrison Access Hacks 1 | . . . . . . . 1 . . . . . . Unlock Access 1 | . . . . . . . 1 . . . . . . Unauthorized Hacks . | . . . . . . . . . . . . . . Terminals . | . . . . . . . . . . . . . . Fabricators . | . . . . . . . . . . . . . . Repair Stations . | . . . . . . . . . . . . . . Recycling Units . | . . . . . . . . . . . . . . Scanalyzers . | . . . . . . . . . . . . . . Garrison Access . | . . . . . . . . . . . . . . Data Cores Recovered . | . . . . . . . . . . . . . . Used . | . . . . . . . . . . . . . . Hacking Detections 10 | . 1 2 . . . . 3 . 2 . . . 2 Full Trace Events 3 | . . 1 . . . . 1 . . . . . 1 Feedback Events . | . . . . . . . . . . . . . . Feedback Blocked . | . . . . . . . . . . . . . . Robot Schematics Acquired . | . . . . . . . . . . . . . . Robots Built . | . . . . . . . . . . . . . . Matter . | . . . . . . . . . . . . . . Time . | . . . . . . . . . . . . . . Total Robot Build Rating . | . . . . . . . . . . . . . . Part Schematics Acquired . | . . . . . . . . . . . . . . Parts Built . | . . . . . . . . . . . . . . Matter . | . . . . . . . . . . . . . . Time . | . . . . . . . . . . . . . . Total Part Build Rating . | . . . . . . . . . . . . . . Parts Repaired 2 | . . . . . . . . . 2 . . . . Time 58 | . . . . . . . . . 58 . . . . Parts Recycled . | . . . . . . . . . . . . . . Recycled Matter . | . . . . . . . . . . . . . . Retrieved Matter . | . . . . . . . . . . . . . . Retrieved Components 3 | . 3 . . . . . . . . . . . . Parts Scanalyzed . | . . . . . . . . . . . . . . Part Schematics Acquired . | . . . . . . . . . . . . . . Parts Damaged . | . . . . . . . . . . . . . . Bothacking | -11 -10 -9 -9 -9 -8 -8 -8 -8 -7 -7 -7 -6 -6 ------------ Run | Scr Mat Mat Min Exi Min Mat Sto Gar Fac Low Low Fac Ext Used RIF Installer 1 | . . . . . . . . 1 . . . . . Robots Hacked . | . . . . . . . . . . . . . . Non-combat . | . . . . . . . . . . . . . . Combat . | . . . . . . . . . . . . . . Robot Hacks Applied . | . . . . . . . . . . . . . . Relay Couplers Released 3 | . . . . . . . . 3 . . . . . Machine Destruction 3 | . . . . . . . . 3 . . . . . Robots Rewired 7 | . . . . . . . . . . 3 . . 4 Allies Hacked . | . . . . . . . . . . . . . . Hacks Repelled . | . . . . . . . . . . . . . . Allies | -11 -10 -9 -9 -9 -8 -8 -8 -8 -7 -7 -7 -6 -6 -------- Run | Scr Mat Mat Min Exi Min Mat Sto Gar Fac Low Low Fac Ext Total Allies 17 | . . . 3 . . . . . . 3 . . 11 Largest Group 6 | . . . 3 3 3 1 . . . 3 . . 6 Highest-Rated Group 290 | . . . 40 40 40 16 . . . 60 . . 290 Highest-Rated Ally 156 | . . . 16 16 16 16 . . . 20 . . 156 Total Orders 1 | . . . . . 1 . . . . . . . . EXPLORE 1 | . . . . . 1 . . . . . . . . Ally Attacks 139 | . . . . . 33 3 . . . 22 . . 81 Total Damage 2574 | . . . . . 323 31 . . . 339 . . 1881 Kills 22 | . . . . . 5 . . . . 1 . . 16 Allies Corrupted . | . . . . . . . . . . . . . . Allies Melted . | . . . . . . . . . . . . . . Intel | -11 -10 -9 -9 -9 -8 -8 -8 -8 -7 -7 -7 -6 -6 ------- Run | Scr Mat Mat Min Exi Min Mat Sto Gar Fac Low Low Fac Ext Robot Analysis Total . | . . . . . . . . . . . . . . Derelict Logs Recovered 4 | . . . 2 . . . . . . 2 . . . Drone Launches 1 | . . . . . 1 . . . . . . . . Drone Recoveries . | . . . . . . . . . . . . . . Exploration | -11 -10 -9 -9 -9 -8 -8 -8 -8 -7 -7 -7 -6 -6 ------------- Run | Scr Mat Mat Min Exi Min Mat Sto Gar Fac Low Low Fac Ext Turns Passed 8513 | 71 274 483 314 1035 376 612 808 1504 991 804 72 420 749 Spaces Moved 3668 | 47 153 247 201 534 177 219 245 546 455 369 31 134 310 Core 14 | 9 . . . . . . . . . . . . 5 Treads 123 | . . . . . . . 123 . . . . . . Legs 3525 | 38 153 247 201 534 177 219 122 546 455 369 31 134 299 Wheels . | . . . . . . . . . . . . . . Hover . | . . . . . . . . . . . . . . Flight 6 | . . . . . . . . . . . . . 6 Fastest Speed 40 | 50 120 150 150 150 180 180 210 210 183 183 183 180 40 Average Speed 189 | 106 153 150 150 191 183 184 231 233 202 183 183 182 168 Slowest Speed 270 | 120 180 150 150 240 210 210 240 270 210 183 183 183 210 Overloaded Moves . | . . . . . . . . . . . . . . Propulsion Burnouts . | . . . . . . . . . . . . . . Robots Hopped . | . . . . . . . . . . . . . . Cave-ins Triggered . | . . . . . . . . . . . . . . Exploration Rate (%) 30 | 4 32 27 34 76 46 17 20 71 12 47 6 3 36 Regions Visited 13 Branch Regions 7 Pre-discovered Areas 1 | . . . . 1 . . . . . . . . . Known Exits Taken 2 | . . . . . . 1 1 . . . . . . Unknown Exits Taken 10 | 1 1 1 1 1 1 . . . 1 1 1 1 . Scrap Searched 1 | . . . . . 1 . . . . . . . . Spaces Dug . | . . . . . . . . . . . . . . Terrain Destroyed 173 | . . . . . . 67 . 75 5 16 2 . 8 Melee . | . . . . . . . . . . . . . . Projectile 14 | . . . . . . 3 . . . 9 2 . . AOE 159 | . . . . . . 64 . 75 5 7 . . 8 Terrain Rammed . | . . . . . . . . . . . . . . Walls Destroyed . | . . . . . . . . . . . . . . Machines Disabled . | . . . . . . . . . . . . . . Actions | -11 -10 -9 -9 -9 -8 -8 -8 -8 -7 -7 -7 -6 -6 --------- Run | Scr Mat Mat Min Exi Min Mat Sto Gar Fac Low Low Fac Ext Total 4775 | 57 171 314 208 548 205 378 437 709 515 444 35 292 462 Wait 462 | . . 2 . . 2 108 112 56 16 9 . 134 23 Move 3650 | 46 152 246 200 533 176 218 244 540 454 368 30 133 310 Hop . | . . . . . . . . . . . . . . Pick Up 79 | 1 6 11 1 8 . 7 18 8 10 2 . 2 5 Fast Attach 38 | 6 1 4 . 3 1 4 4 5 4 . . 2 4 Attach 31 | . . 3 . . 1 4 7 2 2 3 . 2 7 Detach 2 | . . . . . . . 1 1 . . . . . Swap 63 | . 1 10 1 . 7 3 6 17 6 3 . 5 4 Drop 90 | . . 12 2 4 4 7 16 18 15 1 . 4 7 Fire 240 | 4 11 26 4 . 14 27 29 42 8 24 5 10 36 Melee . | . . . . . . . . . . . . . . Ram 4 | . . . . . . . . . . . . . 4 Kick 1 | . . . . . . . . . . . . . 1 Crush . | . . . . . . . . . . . . . . Escape Stasis 25 | . . . . . . . . 20 . . . . 5 Rewire 90 | . . . . . . . . . . 34 . . 56 Trap . | . . . . . . . . . . . . . . Miscellaneous . | . . . . . . . . . . . . . . Route ------- -11/Scrapyard -10/Materials -9/Materials -9/Mines -9/Exiles -8/Mines -8/Materials -8/Storage -8/Garrison (discovered 2 exits: *Fac x2) -7/Factory -7/Lower Caves -7/Lower Caves -6/Factory -6/Extension History --------- Turn | Location | Event 4 | -11/Scrapyard | Discovered new exit (range 15) 72 | -11/Scrapyard | Entered Materials 283 | -10/Materials | Discovered new exit (range 12) 302 | -10/Materials | Build established: Mutant 346 | -10/Materials | Entered another Materials area 346 | -9/Materials | Evolved 2 slots: Propulsion x1, Utility x1 792 | -9/Materials | Discovered new exit (range 14) 829 | -9/Materials | Entered Mines 881 | -9/Mines | Assisted by bots powering up and referring to "LRC-V3" 953 | -9/Mines | Build established: Scavenger-Mutant 1011 | -9/Mines | Learned Materials trap positions 1131 | -9/Mines | Deemed a non-threat by the Exiles lab entrance 1131 | -9/Mines | Discovered new exit (range 5) 1143 | -9/Mines | Entered Exiles 1143 | -9/Exiles | Accompanied by 3 allies 1181 | -9/Exiles | Met 8R-AWN 1202 | -9/Exiles | Met EX-HEX 1251 | -9/Exiles | Met EX-BIN 1280 | -9/Exiles | Aligned with FarCom system 1281 | -9/Exiles | Given EX-Vault access code 1325 | -9/Exiles | Met EX-DEC 1340 | -9/Exiles | Learned location of Zion (-7) 1410 | -9/Exiles | Visited The Gauntlet 1686 | -9/Exiles | Discovered new exit (range 14) 1832 | -9/Exiles | Build established: Hauler-Mutant 1945 | -9/Exiles | Opened EX-Vault 1958 | -9/Exiles | Found Prototype Device 1958 | -9/Exiles | Identified PSU Rigger 1962 | -9/Exiles | Found Prototype Device 1962 | -9/Exiles | Identified Supersonic Drone Bay 2008 | -9/Exiles | Warned to stay clear of 0b10 Research branches 2178 | -9/Exiles | Left Exiles lab with Supersonic Drone Bay 2178 | -9/Exiles | Entered Mines 2178 | -8/Mines | Accompanied by 3 allies 2531 | -8/Mines | Discovered new exit (range 10) 2554 | -8/Mines | Entered Materials 2554 | -8/Materials | Accompanied by 1 ally 2554 | -8/Materials | Evolved 2 slots: Utility x2 2555 | -8/Materials | Identified exit to Storage 2556 | -8/Materials | Loaded intel: 30 trap records 2576 | -8/Materials | Build established: Scavenger-Mutant 2958 | -8/Materials | Lost 3 parts (1p2n) 3166 | -8/Materials | Entered Storage 3519 | -8/Storage | Lost 6 parts (1p2n2u1w) 3894 | -8/Storage | Garrison activated, responded to threat 3970 | -8/Storage | Build established: Hauler-Mutant 3972 | -8/Storage | Identified exit to Garrison 3974 | -8/Storage | Entered Garrison 4082 | -8/Garrison | Triggered checkpoint 4172 | -8/Garrison | Discovered new exit (range 15) 4205 | -8/Garrison | Attempted to access garrison exit controls, blocked by remote lockdown 4254 | -8/Garrison | Triggered checkpoint 4316 | -8/Garrison | Garrison Relay disabled 4458 | -8/Garrison | Core integrity fell below 50% 4584 | -8/Garrison | Triggered checkpoint 4693 | -8/Garrison | Build established: Scavenger-Mutant 4709 | -8/Garrison | Phase Generator disabled 4880 | -8/Garrison | Triggered checkpoint 5064 | -8/Garrison | Triggered checkpoint 5153 | -8/Garrison | Discovered new exit (range 15) 5467 | -8/Garrison | Installed Relay Interface Framework 5478 | -8/Garrison | Entered Factory 5478 | -7/Factory | Evolved 2 slots: Utility x1, Weapon x1 5944 | -7/Factory | Repaired Hvy. Assault Rifle 5970 | -7/Factory | Repaired Aluminum Leg 5996 | -7/Factory | Build established: Hauler-Skirmisher 6456 | -7/Factory | Discovered new exit (range 7) 6469 | -7/Factory | Entered Lower Caves 6590 | -7/Lower Caves | Attacked by a delusional Derelict stockpiling Unaware 6760 | -7/Lower Caves | Learned Factory machine intel 6760 | -7/Lower Caves | Spotted B-75 Beast 6773 | -7/Lower Caves | Build established: Hauler-Gunner 6848 | -7/Lower Caves | Destroyed B-75 Beast 7174 | -7/Lower Caves | Learned Factory interactive machine intel 7220 | -7/Lower Caves | Lost 3 parts (1p2w) 7249 | -7/Lower Caves | Discovered new exit (range 14) 7273 | -7/Lower Caves | Entered another Lower Caves area 7332 | -7/Lower Caves | Discovered new exit (range 9) 7332 | -7/Lower Caves | Spotted B-75 Beast 7345 | -7/Lower Caves | Entered Factory 7345 | -6/Factory | Evolved 2 slots: Utility x2 7346 | -6/Factory | Loaded intel: 247 machine locations 7347 | -6/Factory | Loaded intel: 48 interactive machine locations 7752 | -6/Factory | Discovered new exit (range 9) 7765 | -6/Factory | Entered Extension 7891 | -6/Extension | Rescued a captive Derelict 7987 | -6/Extension | Rescued A7 8062 | -6/Extension | Rescued a captive Derelict 8340 | -6/Extension | Rescued a captive Derelict 8340 | -6/Extension | Rescued a captive Derelict 8415 | -6/Extension | Disrupted transfer network 8418 | -6/Extension | Spotted B-75 Beast 8434 | -6/Extension | Rescued a captive Derelict 8435 | -6/Extension | Rescued a captive Derelict 8449 | -6/Extension | Spotted B-75 Beast 8503 | -6/Extension | Released all parts (6) 8507 | -6/Extension | Core integrity fell below 50% 8513 | -6/Extension | Core integrity fell below 20% 8514 | -6/Extension | Destroyed by S-27 Virus with Autogun Last Messages --------------- 08503_ Released Targeting Computer. 08503_ Released Coolant Injector. 08503_ Coolant Injector crushed and broken. 08503_ Released Humpback. 08503_ Humpback crushed and broken. 08503_ Slammed into S-27 Virus. 08504_ C-30 ARC bursts open, deploying its payload. 08504_ S-27 Virus unfolds itself. 08504_ Slammed into S-27 Virus. 08506_ R-10 Processor inserts Lgt. Angular Momentum Engine into recycling unit. 08506_ S-27 Virus suffers critical hit. 08506_ Slammed into S-27 Virus. 08506_ Destabilizing: System corrupted (+2). 08509_ B-75 Beast IFF system glitched. 08509_ S-27 Virus destroyed. 08509_ Acquired VTOL Module. 08512_ Knocked back. 08512_ VTOL Module destroyed. 08512_ Knocked back. Map ----- +----------------------------------------------------+ | ?# * ### !!### #??????????????????????????????? | | ?# % ####%=#?#%#??????????????????????????????? | | ###+########=*#?# #??????????????????????????????? | | * = ##?#%##?????????????????????????????? | | #" "##########??# ##?????????????????????????????? | | #"Y"#???????????#%# #????????????????????????????? | | #"""#???????????# # #????????????????????????????? | | #####???????????# #?#????????????????????????????? | | ????????????????# #??????????????????????????????? | | ????????????????# ####???????????????????????????? | | ????????????????# """#???????????????????????????? | | ????????????????#[ Y"#???????????????????????????? | | ??????????????###="""#???????????????????????????? | | ????????????###%#[####???????????????????????????? | | ????????????#*!![=#??????????????????????????????? | | ????????????#!=%![#??????????#???????????????????? | | ????????????###!%[#????????? #???????????????????? | | ?????????????##=][#????????? #???????????????????? | | ?????????????#|*%!########?? #???????????????????? | | ?????????????##%!s%## ## ### ###?????????????????? | | ??????????????#!]ss*! "" ""#?????????????????? | | ????????????# #=%%%% " " #?????????????????? | | ????????????# ;=BB%$%% #?????????????????? | | ????????????# # BB=%s* #?????????????????? | | ????????????### BB ###???????????????? | | ?????????? /%= BB @ g ????????? | | ?????????? * g ???????? | | ????????? w ????????? | | ???????? ????????? | | ???????? RR A k R ?????????? | | ????????####### #########?????????? | | ??????????????# #?????????????????? | | ??????????????# #?????????????????? | | ??????????????# #?????????????????? | | ??????????????# #?????????????????? | | ??????????????######T#"""#######?????????????????? | | ???????????????????##????????????????????????????? | | ?????????????????????????????????????????????????? | | | | | | | | | | | | | | | | | | | | | | | | | +----------------------------------------------------+ Best States ------------- Heat Dissipation 64 Coolant Potential 65 Energy Generation 18 Energy Capacity 610 Matter Stores 500 Matter Capacity 500 Sight Range 16 Terrain Scan Density 10 Armor Coverage 225 Propulsion Shielding 66 Weapon Shielding 66 Evasion (%) 50 Targeting Accuracy 10 Recoil Reduction 1 Item Schematics ----------------- None Robot Schematics ------------------ None Fabricated ------------ Nothing Alien Tech Used ----------------- None Achievements -------------- None Challenges ------------ None Game ------ Seed BeamRagnarokCleaver Manual? 0 Play Time 00:49:51 Cumulative 81.9 hours Start 2021.08.31 @ 11:23:19 End 2021.08.31 @ 16:01:30 Sessions 1 Manual Loads 0 Difficulty Rogue Special Mode None Game No. 121 Rogue 109 Adventurer 10 Explorer 2 Win Type - Total 0 Types 0/0/0/0/0/0/0/0/0 Lore% 23 Gallery% 56 Achievement% 37 Wizard Run 0 Options --------- ASCII 0 Keyboard 0 Movement Arrows Keybinds 0 Fullscreen 1 Font 36/CogNarrow Map View 76x50 Tactical HUD 1 Map Filters NONE Filters NONE Steam 1 RUN: 6e61bba5-59f5-4db5-8155-e3b0e08cd954